lending/lending_fUSD_20240621
["ID","MTS","AMOUNT","RATE_DAILY","PERIOD"]
[330045045,1718965847152,-188.477934,0.00022562,7]
[330045046,1718965847162,-151.0,0.00022562,7]
[330045047,1718965847172,-151.0,0.00022562,7]
[330045048,1718965847182,-227.883735,0.00022562,7]
[330045049,1718965847194,-227.883735,0.00022562,7]
[330045050,1718965847204,-151.0,0.00022562,7]
[330045051,1718965847214,-151.0,0.00022562,7]
[330045052,1718965847223,-152.974679,0.00022562,7]
[330045053,1718965847232,-151.0,0.00022562,7]
[330045054,1718965847242,-151.0,0.00022562,7]
[330045055,1718965847251,-151.0,0.00022562,7]
[330045056,1718965847261,-197.059173,0.00022562,7]
[330045057,1718965847271,-153.514459,0.00022562,7]
[330045058,1718965847280,-288.150772,0.00022562,7]
[330045060,1718965847289,-288.150772,0.00022562,7]
[330045062,1718965847298,-151.0,0.00022562,7]
[330045063,1718965847307,-151.0,0.00022562,7]
[330045064,1718965847317,-861.495484,0.00022562,7]
[330045065,1718965847328,-861.495484,0.00022562,7]
[330045066,1718965847340,-151.0,0.00022562,7]
[330045067,1718965847350,-151.0,0.00022562,7]
[330045068,1718965847360,-151.0,0.00022562,7]
[330045069,1718965847370,-151.0,0.00022562,7]
[330045070,1718965847379,-157.369168,0.00022562,7]
[330045071,1718965847389,-157.369168,0.00022562,7]
[330045072,1718965847398,-559.201952,0.00022562,7]
[330045073,1718965847408,-151.0,0.00022562,7]
[330045074,1718965847418,-559.201952,0.00022562,7]
[330045075,1718965847427,-151.0,0.00022562,7]
[330045076,1718965847437,-200.703653,0.00022562,7]
[330045077,1718965847447,-200.703653,0.00022562,7]
[330045078,1718965847456,-151.0,0.00022562,7]
[330045079,1718965847466,-151.0,0.00022562,7]
[330045080,1718965847475,-157.031874,0.00022562,7]
[330045081,1718965847485,-212.86362,0.00022562,7]
[330045082,1718965847494,-3959.513029,0.00022562,7]
[330045083,1718965847504,-151.0,0.00022562,7]
[330045084,1718965847514,-212.86362,0.00022562,7]
[330045085,1718965847523,-151.0,0.00022562,7]
[330045086,1718965847532,-151.0,0.00022562,7]
[330045087,1718965847542,-151.0,0.00022562,7]
[330045088,1718965847551,-4371.003219,0.00022562,7]
[330045089,1718965847561,-4371.003219,0.00022562,7]
[330045090,1718965847570,-151.0,0.00022562,7]
[330045091,1718965847580,-476.867846,0.00022562,7]
[330045092,1718965847589,-151.0,0.00022562,7]
[330045093,1718965847598,-476.867846,0.00022562,7]
[330045094,1718965847608,-163.101334,0.00022562,7]
[330045095,1718965847618,-151.0,0.00022562,7]
[330045096,1718965847628,-1213.17657884,0.00022565,2]
[330045097,1718965847637,-522.47892309,0.00022589,2]
[330045098,1718965847646,-154.49223323,0.00022602,2]
[330045099,1718965847655,-151.0,0.00022611,7]
[330045100,1718965847665,-151.867942,0.00022611,7]
[330045101,1718965847674,-1213.17657884,0.00022611,2]
[330045102,1718965847684,-1213.17657884,0.00022658,2]
[330045103,1718965847693,-152.08926533,0.00022676,2]
[330045104,1718965847702,-151.0,0.00022689,7]
[330045105,1718965847711,-151.0,0.00022689,7]
[330045106,1718965847720,-299.137752,0.00022689,7]
[330045107,1718965847729,-151.0,0.00022689,7]
[330045108,1718965847739,-151.0,0.00022689,7]
[330045109,1718965847748,-190.418706,0.00022689,7]
[330045110,1718965847757,-190.418706,0.00022689,7]
[330045111,1718965847766,-151.0,0.00022689,7]
[330045112,1718965847775,-151.0,0.00022689,7]
[330045113,1718965847785,-151.0,0.00022689,7]
[330045114,1718965847795,-1213.17657884,0.00022704,2]
[330045115,1718965847804,-1213.17657884,0.00022751,2]
[330045116,1718965847812,-1213.17657884,0.00022797,2]
[330045117,1718965847822,-500.0,0.00022805,2]
[330045118,1718965847831,-1000.0,0.00022806,2]
[330045119,1718965847840,-500.0,0.00022806,2]
[330045120,1718965847849,-500.0,0.00022806,2]
[330045121,1718965847859,-1213.17657884,0.00022844,2]
[330045122,1718965847868,-153.95990554,0.00022872,2]
[330045123,1718965847879,-154.59692945,0.00022874,2]
[330045124,1718965847889,-34228.0220441,0.0002288,3]
[330045125,1718965847899,-162.2473133,0.00022884,2]
[330045126,1718965847909,-7500.0,0.0002289,2]
[330045127,1718965847919,-339.711219,0.0002289,7]
[330045128,1718965847929,-339.711219,0.0002289,7]
[330045129,1718965847939,-151.0,0.0002289,7]
[330045130,1718965847952,-151.0,0.0002289,7]
[330045131,1718965847964,-153.671623,0.0002289,7]
[330045132,1718965847973,-151.0,0.0002289,7]
[330045133,1718965847982,-151.0,0.0002289,7]
[330045134,1718965847991,-189.402578,0.0002289,7]
[330045135,1718965848003,-151.0,0.0002289,7]
[330045136,1718965848013,-151.0,0.0002289,7]
[330045137,1718965848023,-163.440646,0.0002289,7]
[330045138,1718965848036,-151.0,0.0002289,7]
[330045139,1718965848047,-154.92455299,0.0002289,2]
[330045140,1718965848056,-1213.17657884,0.0002289,2]
[330045141,1718965848066,-150.0,0.000229,11]
[330045142,1718965848075,-150.5,0.0002296,30]
[330045143,1718965848085,-150.5,0.0002297,30]
[330045144,1718965848094,-251.37,0.0002297,30]
[330045145,1718965848103,-20069.37707086,0.0002297,2]
[330045146,1718965848116,-523.98031464,0.0002297,2]
[330045147,1718965848128,-2572.18840021,0.0002297,2]
[330045148,1718965848138,-296.88529614,0.00022973,2]
[330045149,1718965848147,-150.0,0.00022979,10]
[330045150,1718965848156,-150.0,0.00022979,10]
[330045151,1718965848166,-150.0,0.00022979,10]
[330045152,1718965848176,-150.0,0.00022979,10]
[330045153,1718965848185,-150.0,0.00022979,10]
[330045154,1718965848195,-150.0,0.00022979,10]
[330045155,1718965848204,-3563.3413326,0.00022979,3]
[330045156,1718965848948,-10142.18601519,0.00022979,3]
[330045157,1718965848965,-259.84370717,0.00022979,3]
[330045158,1718965848976,-654.05,0.00022979,3]
[330045159,1718965848987,-404.0,0.00022979,3]
[330045160,1718965849001,-19204.60098914,0.00022979,3]
[330045161,1718965849014,-150.5,0.0002298,30]
[330045162,1718965849023,-150.5,0.0002298,30]
[330045163,1718965849032,-25932.07765473,0.0002298,3]
[330045164,1718965849046,-462.43344098,0.0002298,3]
[330045165,1718965849057,-449.39876184,0.0002298,3]
[330045166,1718965997430,1000.0,0.00025987,120]
[330045168,1718966117127,10000.0,0.00026,60]
[330045170,1718966150316,10000.0,0.00026,60]
[330045172,1718966184730,328.0,0.00026,60]
[330045435,1718967033263,-639.1289,0.00011808,2]
[330045437,1718967033272,-2656.76398223,0.0001308,2]
[330045439,1718967033283,-27599.84687876,0.0001308,2]
[330045440,1718967033294,-455.80969612,0.0001308,2]
[330045441,1718967033306,-286185.04626622,0.0001308,2]
[330045442,1718967033317,-149731.02812418,0.0001308,2]
[330045443,1718967033327,-6152.5097733,0.000138,2]
[330045444,1718967033343,-5000.0,0.00015,2]
[330045445,1718967033353,-710.84,0.00019104,2]
[330045446,1718967033362,-499.99,0.00019699,2]
[330045447,1718967033372,-3852.66,0.00019699,2]
[330045449,1718967033382,-150.0,0.00019699,2]
[330045451,1718967033391,-11745.0,0.000201,5]
[330045454,1718967033401,-3164.52,0.0002058,2]
[330045455,1718967033412,-276.58,0.00020902,30]
[330045457,1718967033421,-250.0,0.00020919,2]
[330045459,1718967033431,-1250.0,0.00021,2]
[330045460,1718967033440,-1000.0,0.00021067,2]
[330045461,1718967033450,-346.13,0.00021265,2]
[330045462,1718967033460,-710.84,0.00021368,2]
[330045463,1718967033469,-971.61,0.00021644,2]
[330045466,1718967033478,-4417.99,0.00021757,2]
[330045467,1718967033487,-189.42894477,0.0002179,2]
[330045468,1718967033500,-98895.8187744,0.000218,3]
[330045469,1718967033509,-7502.85,0.0002191,2]
[330045470,1718967033518,-162.06,0.00021918,2]
[330045471,1718967033528,-1000.0,0.00021918,2]
[330045472,1718967033537,-150.62551864,0.00022175,2]
[330045473,1718967033546,-543.76261897,0.00022492,2]
[330045474,1718967033555,-1385.51070045,0.00022513,2]
[330045475,1718967033565,-32965.2729248,0.00022601,3]
[330045476,1718967033575,-1000.0,0.00022806,2]
[330045477,1718967033584,-219.86,0.00022877,3]
[330045478,1718967033593,-25615.8082,0.0002288,2]
[330045479,1718967033603,-1258.785,0.0002288,2]
[330045480,1718967033612,-556.03926543,0.0002288,2]
[330045481,1718967033622,-556.03926532,0.00022881,2]
[330045482,1718967033631,-556.03926532,0.00022882,2]
[330045483,1718967033641,-150.0,0.000229,11]
[330045484,1718967033651,-103832.26124351,0.0002297,3]
[330045485,1718967034664,-2400.0,0.0002297,3]
[330045486,1718967034676,-572.06462924,0.0002297,3]
[330045496,1718967039413,-556.03926532,0.00022883,2]
[330045498,1718967039424,-1049.34519517,0.0002297,3]
[330045500,1718967039439,-917.27826181,0.0002297,3]
[330045666,1718967041293,-300.0,0.0002297,3]
[330045669,1718967041305,-1625.96453914,0.0002297,3]
[330045735,1718967041948,-556.03926532,0.00022884,2]
[330045737,1718967041957,-1044.95073468,0.0002297,3]
[330045739,1718967041968,-6406.74858673,0.0002297,3]
[330045907,1718967043900,-1750.0,0.0002297,3]
[330045911,1718967043912,-1889.08592415,0.0002297,3]
[330045966,1718967044591,-4838.90982786,0.0002297,3]
[330046197,1718967046870,-1065.55614246,0.00022513,2]
[330046297,1718967047621,-181.40348794,0.00022513,2]
[330046299,1718967047631,-556.03926532,0.00022885,2]
[330046301,1718967047641,-1012.55724674,0.0002297,3]
[330047274,1718967197756,1000.0,0.00025436,120]
[330047275,1718967961813,110152.3828592,0.00026,60]
[330047308,1718968161448,55593.22701605,0.00026,60]
[330047434,1718968232371,-322.91174239,0.00019475,2]
[330047435,1718968232383,-316.83825761,0.00019475,2]
[330047436,1718968232392,-152.68,0.00019712,2]
[330047437,1718968232402,-150.41,0.00019715,2]
[330047438,1718968232411,-150.87,0.0001972,2]
[330047441,1718968232421,-167.41453724,0.00019725,2]
[330047442,1718968232433,-132.58546276,0.00019725,2]
[330047443,1718968232442,-498.19,0.00019945,2]
[330047444,1718968232452,-152.6,0.00019945,2]
[330047445,1718968232461,-450.0,0.00020797,2]
[330047446,1718968232471,-230.08,0.00020902,2]
[330047447,1718968232480,-117.64214173,0.00021336,30]
[330047448,1718968232492,-135.88785827,0.00021336,30]
[330047449,1718968232502,-250.0,0.0002139,2]
[330047450,1718968232511,-390.72236204,0.00021601,2]
[330047451,1718968232522,-609.27763796,0.00021601,2]
[330047452,1718968232531,-153.72,0.00021644,2]
[330047453,1718968232540,-639.75,0.00021739,2]
[330047454,1718968232550,-473.0272,0.00021839,2]
[330047455,1718968232559,-162.06,0.00021918,2]
[330047456,1718968232568,-2489.63712912,0.00021963,2]
[330047457,1718968232988,-327.775,0.00021963,2]
[330047458,1718968232999,-490.54460997,0.00021963,2]
[330047460,1718968233011,-2005.57355483,0.00021963,2]
[330047462,1718968233024,-2098.20970608,0.00021963,2]
[330047463,1718968233034,-100.82899739,0.00022012,2]
[330047464,1718968233046,-49.79652125,0.00022012,2]
[330047465,1718968233056,-150.62551864,0.00022025,2]
[330047466,1718968233065,-251.50288784,0.00022027,2]
[330047467,1718968233076,-166.76711216,0.00022027,2]
[330047468,1718968233086,-154.59692945,0.00022041,2]
[330047469,1718968233095,-150.74997782,0.00022139,2]
[330047470,1718968233104,-150.62551864,0.00022141,2]
[330047471,1718968233113,-16.24891908,0.00022164,2]
[330047475,1718968239121,-511.25108092,0.00022164,2]
[330047477,1718968239132,-153.95990554,0.00022226,2]
[330047479,1718968239142,-570.69314794,0.00022492,2]
[330047622,1718968240586,-4429.30685206,0.00022492,2]
[330047624,1718968240595,-150.62551864,0.00022509,2]
[330047626,1718968240605,-1329.78568049,0.00022513,2]
[330047628,1718968240615,-805.5705,0.0002266,2]
[330047630,1718968240624,-500.0,0.00022788,2]
[330047632,1718968240633,-1000.0,0.00022789,2]
[330047634,1718968240643,-500.0,0.00022789,2]
[330047636,1718968240652,-445.46,0.00022864,2]
[330047638,1718968240662,-3060.6621,0.00022874,2]
[330047640,1718968240671,-3753.1223,0.00022874,2]
[330047642,1718968240681,-22689.9407,0.00022876,2]
[330047644,1718968240690,-884.175,0.0002288,2]
[330047646,1718968240699,-231.7897,0.0002288,2]
[330047647,1718968240709,-9616.6666,0.0002288,2]
[330047649,1718968240718,-174.63240022,0.0002288,2]
[330047652,1718968240728,-556.03926532,0.00022885,2]
[330047654,1718968240738,-556.03926532,0.00022886,2]
[330047655,1718968240748,-556.03926532,0.00022887,2]
[330047657,1718968240757,-556.03926532,0.00022888,2]
[330047659,1718968240773,-150.74997782,0.00022889,2]
[330047662,1718968240782,-556.03926532,0.00022889,2]
[330047664,1718968240792,-556.03926532,0.0002289,2]
[330047666,1718968240803,-174.63240022,0.0002289,2]
[330047668,1718968240814,-150.0,0.000229,11]
[330047670,1718968240823,-166.66666668,0.00022949,2]
[330047672,1718968240832,-27126.76239272,0.0002297,3]
[330047836,1718968243457,-1103.0,0.000207,4]
[330047838,1718968243467,-2096.6238,0.0002297,3]
[330047840,1718968243478,-1990.95,0.0002297,3]
[330047843,1718968243490,-1001.18899325,0.0002297,3]
[330047845,1718968243501,-560.94767266,0.0002297,3]
[330048250,1718968247580,-1412.22952965,0.0002297,3]
[330048253,1718968247591,-3207.25,0.0002297,3]
[330048255,1718968247602,-1991.635596,0.0002297,3]
[330048257,1718968247613,-1422.5,0.0002297,3]
[330048259,1718968247625,-461.66655343,0.0002297,3]
[330048261,1718968247636,-1422.62284,0.0002297,3]
[330048263,1718968247648,-22951.11740381,0.0002297,3]
[330048290,1718968482350,-1000.0,0.00013698,5]
[330048294,1718969281643,157.67407384,0.00026,60]
[330048324,1718969435302,-324.83667012,0.00018888,2]
[330048326,1718969435313,-602.09,0.00018989,2]
[330048327,1718969435323,-165.291226,0.00019121,2]
[330048328,1718969435332,-150.0,0.00019725,2]
[330048329,1718969435342,-150.0,0.00019725,2]
[330048330,1718969435353,-150.99,0.00019726,2]
[330048331,1718969435363,-608.38,0.00019726,2]
[330048332,1718969435372,-165.291226,0.00020077,2]
[330048334,1718969435382,-499.99,0.00020077,2]
[330048336,1718969435391,-87.03087595,0.00020077,2]
[330048338,1718969435402,-9912.95912405,0.00020077,2]
[330048340,1718969435412,-1220.67,0.00020077,2]
[330048342,1718969435421,-232.4,0.00020594,30]
[330048344,1718969435431,-876.91,0.00020604,2]
[330048346,1718969435441,-250.0,0.00020616,2]
[330048348,1718969435451,-1000.0,0.00020692,2]
[330048350,1718969435461,-4690.0,0.000207,4]
[330048352,1718969435471,-1160.63,0.00020702,2]
[330048354,1718969435480,-496.1,0.00020729,2]
[330048356,1718969435490,-250.0,0.00020732,2]
[330048358,1718969435500,-150.0,0.00020733,2]
[330048360,1718969435510,-181.81,0.00020862,2]
[330048362,1718969435520,-177.56,0.00020902,2]
[330048364,1718969435532,-192.2,0.00020914,2]
[330048366,1718969435541,-23047.25,0.00020968,2]
[330048368,1718969435554,-4000.0,0.00020986,2]
[330048369,1718969435564,-1250.0,0.00021,2]
[330048370,1718969435573,-178.72,0.0002115,2]
[330048371,1718969435583,-161.06,0.00021223,2]
[330048373,1718969435592,-161.06,0.00021249,2]
[330048374,1718969435602,-602.09,0.00021253,2]
[330048375,1718969435612,-161.06,0.00021276,2]
[330048376,1718969435621,-882.955,0.00021286,2]
[330048377,1718969435631,-1567.869,0.00021286,2]
[330048378,1718969435640,-259.017,0.00021286,2]
[330048379,1718969435650,-1067.0,0.00021286,2]
[330048380,1718969435660,-161.06,0.00021302,2]
[330048381,1718969435670,-161.06,0.00021329,2]
[330048382,1718969435680,-164.55,0.00021342,2]
[330048383,1718969435690,-150.0,0.00021342,2]
[330048384,1718969435699,-600.0,0.00021566,3]
[330048385,1718969435709,-500.0,0.000219,7]
[330048386,1718969435719,-162.06,0.00021918,2]
[330048387,1718969435729,-1000.0,0.00022,8]
[330048388,1718969435739,-1500.0,0.000221,8]
[330048389,1718969435748,-150.0,0.00022164,2]
[330048390,1718969435758,-354.18,0.00022164,2]
[330048391,1718969435768,-150.0,0.00022164,2]
[330048392,1718969435780,-354.18,0.00022164,2]
[330048393,1718969435790,-354.18,0.00022164,2]
[330048394,1718969435800,-150.0,0.00022164,2]
[330048395,1718969435809,-353.82,0.00022164,2]
[330048396,1718969435819,-154.59692945,0.000222,2]
[330048397,1718969435829,-2000.0,0.000222,8]
[330048398,1718969435838,-2600.0,0.000223,8]
[330048399,1718969435847,-500.0,0.000224,8]
[330048400,1718969435856,-500.0,0.000225,8]
[330048401,1718969435866,-1196.80711244,0.00022513,2]
[330048402,1718969435876,-153.95990554,0.00022526,2]
[330048403,1718969435888,-500.0,0.000226,8]
[330048404,1718969435897,-152.26060601,0.00022621,2]
[330048405,1718969435907,-500.0,0.000227,8]
[330048406,1718969435916,-1148.44241,0.0002272,2]
[330048407,1718969435925,-527.5,0.00022727,2]
[330048408,1718969435935,-303.8,0.00022727,2]
[330048409,1718969435944,-150.0,0.00022727,2]
[330048410,1718969435954,-163.63,0.00022727,2]
[330048411,1718969435963,-150.0,0.00022727,2]
[330048412,1718969435974,-155.67,0.00022727,2]
[330048413,1718969435984,-423.54,0.00022727,2]
[330048414,1718969435993,-150.0,0.00022727,2]
[330048415,1718969436003,-354.18,0.00022727,2]
[330048416,1718969436013,-383.59,0.00022727,2]
[330048417,1718969436023,-150.0,0.00022727,2]
[330048418,1718969436032,-150.0,0.00022727,2]
[330048419,1718969436042,-150.0,0.00022727,2]
[330048420,1718969436052,-423.54,0.00022727,2]
[330048421,1718969436061,-527.5,0.00022727,2]
[330048422,1718969436071,-150.0,0.00022727,2]
[330048423,1718969436080,-423.54,0.00022727,2]
[330048424,1718969436090,-164.55,0.00022727,2]
[330048425,1718969436099,-527.5,0.00022727,2]
[330048426,1718969436109,-150.0,0.00022727,2]
[330048427,1718969436119,-354.18,0.00022727,2]
[330048428,1718969436128,-354.18,0.00022727,2]
[330048429,1718969436138,-150.0,0.00022727,2]
[330048430,1718969436147,-150.0,0.00022727,2]
[330048431,1718969436157,-164.55,0.00022727,2]
[330048432,1718969436167,-423.54,0.00022727,2]
[330048433,1718969436183,-527.5,0.00022727,2]
[330048434,1718969436193,-354.18,0.00022727,2]
[330048435,1718969436203,-527.5,0.00022727,2]
[330048436,1718969436215,-150.0,0.00022727,2]
[330048437,1718969436224,-164.35,0.00022727,2]
[330048438,1718969436235,-423.54,0.00022727,2]
[330048439,1718969436245,-150.0,0.00022727,2]
[330048440,1718969436256,-354.18,0.00022727,2]
[330048441,1718969436266,-175.9546153,0.0002278,2]
[330048442,1718969436276,-174.6324002,0.0002278,2]
[330048443,1718969436285,-500.0,0.00022789,2]
[330048444,1718969436295,-800.0,0.000228,8]
[330048445,1718969436305,-35961.40712303,0.00022866,2]
[330048446,1718969436314,-486.3734,0.00022868,2]
[330048447,1718969436324,-11709.6662,0.00022868,2]
[330048448,1718969436333,-451.55624527,0.00022869,2]
[330048449,1718969436343,-155.0,0.0002287,2]
[330048450,1718969436354,-731.8252,0.0002287,2]
[330048451,1718969436364,-8435.4094,0.0002287,2]
[330048452,1718969436373,-192189.183608,0.0002287,3]
[330048453,1718969436383,-291.7863,0.0002287,2]
[330048454,1718969436392,-281.0485,0.00022874,2]
[330048455,1718969436402,-520667.65607285,0.0002288,2]
[330048456,1718969436411,-11793.45811734,0.0002289,2]
[330048457,1718969436420,-175.95461529,0.0002289,2]
[330048458,1718969436430,-174.6324002,0.0002289,2]
[330048459,1718969436440,-32031.5306013,0.00022949,3]
[330048460,1718969436449,-19317.13889247,0.0002295,3]
[330048461,1718969436459,-151.0,0.00022959,7]
[330048462,1718969436468,-313.290097,0.00022959,7]
[330048463,1718969436478,-313.290097,0.00022959,7]
[330048464,1718969436487,-188.183288,0.00022959,7]
[330048465,1718969436497,-188.183288,0.00022959,7]
[330048466,1718969436507,-151.0,0.00022959,7]
[330048467,1718969436516,-151.0,0.00022959,7]
[330048468,1718969436528,-151.0,0.00022959,7]
[330048469,1718969436538,-152.88051,0.00022959,7]
[330048470,1718969436548,-775.345936,0.00022959,7]
[330048471,1718969436559,-151.0,0.00022959,7]
[330048472,1718969436568,-775.345936,0.00022959,7]
[330048473,1718969436578,-151.0,0.00022959,7]
[330048474,1718969436587,-3933.902897,0.00022959,7]
[330048475,1718969436597,-3933.902897,0.00022959,7]
[330048476,1718969436607,-151.0,0.00022959,7]
[330048477,1718969436898,-266.885695,0.00022959,7]
[330048478,1718969436912,-151.0,0.00022959,7]
[330048479,1718969436922,-199.127258,0.00022959,7]
[330048480,1718969436931,-155.27616,0.00022959,7]
[330048481,1718969436941,-266.885695,0.00022959,7]
[330048482,1718969436950,-199.127258,0.00022959,7]
[330048483,1718969436960,-151.0,0.00022959,7]
[330048484,1718969436970,-151.0,0.00022959,7]
[330048485,1718969436979,-151.0,0.00022959,7]
[330048486,1718969436989,-32031.5306013,0.0002296,3]
[330048487,1718969437000,-150.0,0.00022962,10]
[330048488,1718969437009,-32031.5306013,0.00022963,3]
[330048489,1718969437018,-150.0,0.00022963,10]
[330048490,1718969437029,-151.0,0.00022963,7]
[330048491,1718969437038,-151.0,0.00022963,7]
[330048492,1718969437047,-153.757603,0.00022963,7]
[330048493,1718969437057,-178.926835,0.00022963,7]
[330048494,1718969437067,-178.926835,0.00022963,7]
[330048495,1718969437076,-151.0,0.00022963,7]
[330048496,1718969437086,-151.0,0.00022963,7]
[330048497,1718969437095,-291.223029,0.00022963,7]
[330048498,1718969437105,-169.63014,0.00022963,7]
[330048499,1718969437115,-1885.79569421,0.00022964,2]
[330048500,1718969437124,-31646.6142995,0.00022964,3]
[330048501,1718969437138,-551.56780998,0.00022964,3]
[330048502,1718969437149,-27826.70657209,0.00022964,3]
[330048510,1718969439236,-150.0,0.00022959,10]
[330048511,1718969439248,-150.0,0.00022959,10]
[330048512,1718969439260,-150.0,0.00022962,10]
[330048513,1718969439271,-150.0,0.00022963,10]
[330048514,1718969439286,-151.0,0.00022963,7]
[330048515,1718969439297,-169.63014,0.00022963,7]
[330048516,1718969439308,-150.0,0.00022963,10]
[330048517,1718969439318,-36069.70312223,0.00022964,3]
[330048519,1718969439329,-151.0,0.00022964,7]
[330048520,1718969439340,-313.290097,0.00022964,7]
[330048521,1718969439351,-313.290097,0.00022964,7]
[330048522,1718969439362,-151.0,0.00022964,7]
[330048523,1718969439373,-151.0,0.00022964,7]
[330048524,1718969439383,-151.0,0.00022964,7]
[330048525,1718969439394,-151.0,0.00022964,7]
[330048526,1718969439404,-151.0,0.00022964,7]
[330048527,1718969439414,-151.0,0.00022964,7]
[330048528,1718969439425,-151.0,0.00022964,7]
[330048529,1718969439435,-151.0,0.00022964,7]
[330048530,1718969439446,-151.0,0.00022964,7]
[330048531,1718969439456,-151.0,0.00022964,7]
[330048532,1718969439467,-2860.12579956,0.00022964,7]
[330048533,1718969439479,-951.84904244,0.00022964,7]
[330048534,1718969439490,-445.540008,0.00022964,7]
[330048535,1718969439500,-602.61094956,0.00022964,7]
[330048537,1718969440230,-518.381757,0.00022963,7]
[330048539,1718969440241,-150.786243,0.00022964,7]
[330048657,1718969444799,-518.381757,0.00022963,7]
[330048658,1718969444809,-151.0,0.00022963,7]
[330048660,1718969444818,-3058.57764944,0.00022964,7]
[330048661,1718969444828,-445.540008,0.00022964,7]
[330048664,1718969444838,-151.0,0.00022964,7]
[330048666,1718969444848,-285.730601,0.00022964,7]
[330048668,1718969444858,-151.0,0.00022964,7]
[330048670,1718969444869,-151.0,0.00022964,7]
[330048672,1718969444880,-188.183288,0.00022964,7]
[330048674,1718969444889,-188.183288,0.00022964,7]
[330048676,1718969444899,-151.0,0.00022964,7]
[330048678,1718969444909,-151.0,0.00022964,7]
[330048680,1718969444919,-3969.9328,0.00022964,7]
[330048682,1718969444929,-151.0,0.00022964,7]
[330048683,1718969444940,-3969.9328,0.00022964,7]
[330048684,1718969444949,-775.345936,0.00022964,7]
[330048685,1718969444958,-775.345936,0.00022964,7]
[330048686,1718969444966,-151.0,0.00022964,7]
[330048687,1718969444975,-180.443002,0.00022964,7]
[330048688,1718969444985,-3933.902897,0.00022964,7]
[330048689,1718969444995,-3933.902897,0.00022964,7]
[330048690,1718969445005,-151.0,0.00022964,7]
[330048691,1718969445014,-266.885695,0.00022964,7]
[330048692,1718969445025,-199.127258,0.00022964,7]
[330048693,1718969445035,-266.885695,0.00022964,7]
[330048694,1718969445048,-199.127258,0.00022964,7]
[330048695,1718969445057,-151.0,0.00022964,7]
[330048696,1718969445067,-151.0,0.00022964,7]
[330048697,1718969445078,-151.0,0.00022964,7]
[330048698,1718969445088,-151.0,0.00022964,7]
[330048699,1718969445098,-178.926835,0.00022964,7]
[330048700,1718969445108,-178.926835,0.00022964,7]
[330048701,1718969445117,-151.0,0.00022964,7]
[330048702,1718969445127,-154.322925,0.00022964,7]
[330048703,1718969445136,-169.63014,0.00022964,7]
[330048704,1718969445146,-163.000983,0.00022964,7]
[330048705,1718969445156,-169.63014,0.00022964,7]
[330048706,1718969445165,-518.381757,0.00022964,7]
[330048707,1718969445176,-518.381757,0.00022964,7]
[330048708,1718969445191,-151.0,0.00022964,7]
[330048709,1718969445200,-6517.8654562,0.00022968,2]
[330048710,1718969445210,-4033.6226968,0.00022968,2]
[330048711,1718969445220,-39451.9544406,0.00022968,2]
[330048712,1718969445231,-1163.1913986,0.00022969,2]
[330048713,1718969445242,-4677.9120622,0.00022969,2]
[330048714,1718969445252,-342.50415468,0.00022969,2]
[330048715,1718969445263,-150.0,0.00022969,10]
[330048716,1718969445272,-200.0,0.0002297,5]
[330048717,1718969445283,-151.0,0.0002297,7]
[330048718,1718969445293,-313.290097,0.0002297,7]
[330048719,1718969445304,-313.290097,0.0002297,7]
[330048720,1718969445313,-4520.0234836,0.0002297,2]
[330048721,1718969445323,-151.0,0.0002297,7]
[330048722,1718969445333,-151.0,0.0002297,7]